{"text_format":"1","workbook":"xlsx","n_sheets":4,"sheets":[" ESTARÍSTICA FARMA","ESTSTISTICA SCIH","FARMA-SCIH","BANCO DE DADOS"],"not_rendered":{"charts":0,"images":0,"macros":1,"external_links":0,"defined_names":14,"comments":0,"pivot_tables":0},"unopened":[],"bounds":{"document_bytes":16777216,"sheet_cells":100000,"rows_first":2000,"rows_last":500,"rows_between":2000,"halvings":0,"cell_chars":16384,"cell_head_chars":4096},"cells_cut":0,"cells_raw":0,"read":"whole","date_system":"1900"}

{"sheet":" ESTARÍSTICA FARMA","index":0,"n_rows":0,"n_cols":0,"rows_kept":0,"cut":false,"hidden":false,"merged":[]}

{"sheet":"ESTSTISTICA SCIH","index":1,"n_rows":5,"n_cols":1,"rows_kept":5,"cut":false,"hidden":false,"merged":[]}
[]
["TOTAL CIRURGIA"]
["TOTAL CIRURGIA C/ ATM"]
["TOTAL CIRURGIA S/ ATM"]
["TERAPÊUTICO"]

{"sheet":"FARMA-SCIH","index":2,"n_rows":18,"n_cols":25,"rows_kept":18,"cut":false,"hidden":false,"merged":[[0,6,1,6],[0,7,1,7],[1,3,4,3],[1,20,4,20]]}
[null,null,null,null,null,null,"AGUA ESTÉRIL 250ML",{"$f":"VLOOKUP(G1,'BANCO DE DADOS'!A1:C33,2,FALSE)","v":"SOLUÇÃO PARA INFUSÃO"}]
[null,null,null,"FARMÁCIA",null,null,null,null,null,null,null,null,null,null,null,null,null,null,null,null,"SCIH"]
[]
[]
[]
[]
[]
["ATENDIMENTO","USUÁRIO","PRONTUÁRIO","D NASCIMENTO","IDADE","SEXO","MPP","CLASSE","RISCO","ATM","DOSE EM MG","QTD FRASCO","MÉDICO","REGISTRO N°","PROCEDIMENTO REALIZADO","INÍCIO DA CIRÚRGICA","PROFILAXIA ANTIBIÓTICA","HORÁRIO","REPIQUE","HORÁRIO2","D CONTATO","ATEND/RESPOS","REAÇÃO MPP","REAÇÃO ATM","MEDICO INFORMADO"]
["2023-02-07","YCARO LEVY BARBOSA DO ROSARIO",68188,"2020-05-29",{"$f":"DATEDIF(D9,TODAY(),\"Y\")","v":2},"M","SEVOFLURANO 1MG/ML",{"$f":"VLOOKUP(G9,'BANCO DE DADOS'!$A$1:$B$33,2,FALSE)","v":"ANESTÉSICO GERAIS"},{"$f":"VLOOKUP(G9,'BANCO DE DADOS'!A1:C33,3,FALSE)","v":"Arritmia supraventricular; debilitados; dependência física ou química de medicamentos ou drogas; desordens convulsivas; disfunção hepática; disfunção renal; doença pulmonar, morte por superdose."},"........",500,{"$f":"IF(Tabela2[[#This Row],[DOSE EM MG]]=\"\",0&\" FRASC\",IF(Tabela2[[#This Row],[DOSE EM MG]]=0,1&\" FRASC\",IF(MOD(Tabela2[[#This Row],[DOSE EM MG]],1000)=0,Tabela2[[#This Row],[DOSE EM MG]]/1000&\" FRASC\",INT(Tabela2[[#This Row],[DOSE EM MG]]/1000)+1&\" FRASC\")))","v":"1 FRASC"},"ANA LUIZA MAIA",13517]
["2023-02-07","JOÃO PAULO DIAS MARCIEL FILHO",2580,"2017-07-14",{"$f":"DATEDIF(D10,TODAY(),\"Y\")","v":5},"M","ATROPINA 25MG/ML",{"$f":"VLOOKUP(G10,'BANCO DE DADOS'!$A$1:$B$33,2,FALSE)","v":"ANTIARRÍTIMICOS"},{"$f":"VLOOKUP(G10,'BANCO DE DADOS'!A2:C34,3,FALSE)","v":"Hipertensão severa, colapso circulatório, distúrbios cardíacos, distúrbios pulmonares."},"CEFAZOLINA 1G AMP",1000,{"$f":"IF(Tabela2[[#This Row],[DOSE EM MG]]=\"\",0&\" FRASC\",IF(Tabela2[[#This Row],[DOSE EM MG]]=0,1&\" FRASC\",IF(MOD(Tabela2[[#This Row],[DOSE EM MG]],1000)=0,Tabela2[[#This Row],[DOSE EM MG]]/1000&\" FRASC\",INT(Tabela2[[#This Row],[DOSE EM MG]]/1000)+1&\" FRASC\")))","v":"1 FRASC"},"ANA LUIZA MAIA",13517]
["2023-02-07","JOÃO PAULO DIAS MARCIEL FILHO",2580,"2017-07-14",5,"M","FENTANILA 50MG/ML",{"$f":"VLOOKUP(G11,'BANCO DE DADOS'!$A$1:$B$33,2,FALSE)","v":"ANESTÉSICO GERAIS"},{"$f":"VLOOKUP(G11,'BANCO DE DADOS'!A3:C35,3,FALSE)","v":"Arritmia supraventricular; debilitados; dependência física ou química de medicamentos ou drogas; desordens convulsivas; disfunção hepática; disfunção renal; doença pulmonar, morte por superdose."},"CEFAZOLINA 1G AMP",1500,{"$f":"IF(Tabela2[[#This Row],[DOSE EM MG]]=\"\",0&\" FRASC\",IF(Tabela2[[#This Row],[DOSE EM MG]]=0,1&\" FRASC\",IF(MOD(Tabela2[[#This Row],[DOSE EM MG]],1000)=0,Tabela2[[#This Row],[DOSE EM MG]]/1000&\" FRASC\",INT(Tabela2[[#This Row],[DOSE EM MG]]/1000)+1&\" FRASC\")))","v":"2 FRASC"},"ANA LUIZA MAIA",13517]
["2023-02-07","JOÃO PAULO DIAS MARCIEL FILHO",2580,"2017-07-14",5,"M","SEVOFLURANO 1MG/ML",{"$f":"VLOOKUP(G12,'BANCO DE DADOS'!$A$1:$B$33,2,FALSE)","v":"ANESTÉSICO GERAIS"},{"$f":"VLOOKUP(G12,'BANCO DE DADOS'!A4:C36,3,FALSE)","v":"Arritmia supraventricular; debilitados; dependência física ou química de medicamentos ou drogas; desordens convulsivas; disfunção hepática; disfunção renal; doença pulmonar, morte por superdose."},"CEFAZOLINA 1G AMP",0,{"$f":"IF(Tabela2[[#This Row],[DOSE EM MG]]=\"\",0&\" FRASC\",IF(Tabela2[[#This Row],[DOSE EM MG]]=0,1&\" FRASC\",IF(MOD(Tabela2[[#This Row],[DOSE EM MG]],1000)=0,Tabela2[[#This Row],[DOSE EM MG]]/1000&\" FRASC\",INT(Tabela2[[#This Row],[DOSE EM MG]]/1000)+1&\" FRASC\")))","v":"1 FRASC"},"ANA LUIZA MAIA",13517]
["2023-02-07","JOÃO PAULO DIAS MARCIEL FILHO",2580,"2017-07-14",5,"M","PROPOFOL 10MG/ML",{"$f":"VLOOKUP(G13,'BANCO DE DADOS'!$A$1:$B$33,2,FALSE)","v":"ANESTÉSICO GERAIS"},{"$f":"VLOOKUP(G13,'BANCO DE DADOS'!A5:C37,3,FALSE)","v":"Arritmia supraventricular; debilitados; dependência física ou química de medicamentos ou drogas; desordens convulsivas; disfunção hepática; disfunção renal; doença pulmonar, morte por superdose."},"CEFAZOLINA 1G AMP",null,{"$f":"IF(Tabela2[[#This Row],[DOSE EM MG]]=\"\",0&\" FRASC\",IF(Tabela2[[#This Row],[DOSE EM MG]]=0,1&\" FRASC\",IF(MOD(Tabela2[[#This Row],[DOSE EM MG]],1000)=0,Tabela2[[#This Row],[DOSE EM MG]]/1000&\" FRASC\",INT(Tabela2[[#This Row],[DOSE EM MG]]/1000)+1&\" FRASC\")))","v":"0 FRASC"},"ANA LUIZA MAIA",13517]
["2023-02-24","DANIEL VICTOR LIMA DA SILVA",75890,"1993-12-09",29,"M","ATROPINA 25MG/ML",{"$f":"VLOOKUP(G14,'BANCO DE DADOS'!$A$1:$B$33,2,FALSE)","v":"ANTIARRÍTIMICOS"},{"$f":"VLOOKUP(G14,'BANCO DE DADOS'!A6:C38,3,FALSE)","v":"Hipertensão severa, colapso circulatório, distúrbios cardíacos, distúrbios pulmonares."},"CEFAZOLINA 1G AMP",null,{"$f":"IF(Tabela2[[#This Row],[DOSE EM MG]]=\"\",0&\" FRASC\",IF(Tabela2[[#This Row],[DOSE EM MG]]=0,1&\" FRASC\",IF(MOD(Tabela2[[#This Row],[DOSE EM MG]],1000)=0,Tabela2[[#This Row],[DOSE EM MG]]/1000&\" FRASC\",INT(Tabela2[[#This Row],[DOSE EM MG]]/1000)+1&\" FRASC\")))","v":"0 FRASC"},"NATACHA CASSEB",12026]
["2023-02-24","DANIEL VICTOR LIMA DA SILVA",75890,"1993-12-09",29,"M","FENTANILA 50MG/ML",{"$f":"VLOOKUP(G15,'BANCO DE DADOS'!$A$1:$B$33,2,FALSE)","v":"ANESTÉSICO GERAIS"},{"$f":"VLOOKUP(G15,'BANCO DE DADOS'!A7:C39,3,FALSE)","v":"Arritmia supraventricular; debilitados; dependência física ou química de medicamentos ou drogas; desordens convulsivas; disfunção hepática; disfunção renal; doença pulmonar, morte por superdose."},"CEFAZOLINA 1G AMP",null,{"$f":"IF(Tabela2[[#This Row],[DOSE EM MG]]=\"\",0&\" FRASC\",IF(Tabela2[[#This Row],[DOSE EM MG]]=0,1&\" FRASC\",IF(MOD(Tabela2[[#This Row],[DOSE EM MG]],1000)=0,Tabela2[[#This Row],[DOSE EM MG]]/1000&\" FRASC\",INT(Tabela2[[#This Row],[DOSE EM MG]]/1000)+1&\" FRASC\")))","v":"0 FRASC"},"NATACHA CASSEB",12026]
["2023-02-24","DANIEL VICTOR LIMA DA SILVA",75890,"1993-12-09",29,"M","MIDAZOLAN 15MG/ML",{"$f":"VLOOKUP(G16,'BANCO DE DADOS'!$A$1:$B$33,2,FALSE)","v":"HIPNÓTICOS E SEDATIVOS"},{"$f":"VLOOKUP(G16,'BANCO DE DADOS'!A8:C40,3,FALSE)","v":"Depressão respiratória, dependência, abstinência, hipersedação por superdose."},"CEFAZOLINA 1G AMP",null,{"$f":"IF(Tabela2[[#This Row],[DOSE EM MG]]=\"\",0&\" FRASC\",IF(Tabela2[[#This Row],[DOSE EM MG]]=0,1&\" FRASC\",IF(MOD(Tabela2[[#This Row],[DOSE EM MG]],1000)=0,Tabela2[[#This Row],[DOSE EM MG]]/1000&\" FRASC\",INT(Tabela2[[#This Row],[DOSE EM MG]]/1000)+1&\" FRASC\")))","v":"0 FRASC"},"NATACHA CASSEB",12026]
["2023-02-24","DANIEL VICTOR LIMA DA SILVA",75890,"1993-12-09",29,"M","SEVOFLURANO 1MG/ML",{"$f":"VLOOKUP(G17,'BANCO DE DADOS'!$A$1:$B$33,2,FALSE)","v":"ANESTÉSICO GERAIS"},{"$f":"VLOOKUP(G17,'BANCO DE DADOS'!A9:C41,3,FALSE)","v":"Arritmia supraventricular; debilitados; dependência física ou química de medicamentos ou drogas; desordens convulsivas; disfunção hepática; disfunção renal; doença pulmonar, morte por superdose."},"CEFAZOLINA 1G AMP",null,{"$f":"IF(Tabela2[[#This Row],[DOSE EM MG]]=\"\",0&\" FRASC\",IF(Tabela2[[#This Row],[DOSE EM MG]]=0,1&\" FRASC\",IF(MOD(Tabela2[[#This Row],[DOSE EM MG]],1000)=0,Tabela2[[#This Row],[DOSE EM MG]]/1000&\" FRASC\",INT(Tabela2[[#This Row],[DOSE EM MG]]/1000)+1&\" FRASC\")))","v":"0 FRASC"},"NATACHA CASSEB",12026]
["2023-02-24","DANIEL VICTOR LIMA DA SILVA",75890,"1993-12-09",29,"M","PROPOFOL 10MG/ML",{"$f":"VLOOKUP(G18,'BANCO DE DADOS'!$A$1:$B$33,2,FALSE)","v":"ANESTÉSICO GERAIS"},{"$f":"VLOOKUP(G18,'BANCO DE DADOS'!A10:C42,3,FALSE)","v":"Arritmia supraventricular; debilitados; dependência física ou química de medicamentos ou drogas; desordens convulsivas; disfunção hepática; disfunção renal; doença pulmonar, morte por superdose."},"CEFAZOLINA 1G AMP",null,{"$f":"IF(Tabela2[[#This Row],[DOSE EM MG]]=\"\",0&\" FRASC\",IF(Tabela2[[#This Row],[DOSE EM MG]]=0,1&\" FRASC\",IF(MOD(Tabela2[[#This Row],[DOSE EM MG]],1000)=0,Tabela2[[#This Row],[DOSE EM MG]]/1000&\" FRASC\",INT(Tabela2[[#This Row],[DOSE EM MG]]/1000)+1&\" FRASC\")))","v":"0 FRASC"},"NATACHA CASSEB",12026]

{"sheet":"BANCO DE DADOS","index":3,"n_rows":53,"n_cols":7,"rows_kept":53,"cut":false,"hidden":false,"merged":[]}
["........","........","........"]
["ADENOSINA 3MG/ML","ANTIARRÍTIMICOS","Hipertensão severa, colapso circulatório, distúrbios cardíacos, distúrbios pulmonares.",null,"........","........","........"]
["AGUA ESTÉRIL 100ML","SOLUÇÃO PARA INFUSÃO","Hemólise e desordens Eletrolíticas.",null,"F","SIM","SIM"]
["AGUA ESTÉRIL 250ML","SOLUÇÃO PARA INFUSÃO","Hemólise e desordens Eletrolíticas.",null,"M","NÃO","NÃO"]
["AMIODARONA 50MG/ML","ANTIARRÍTIMICOS","Hipertensão severa, colapso circulatório, distúrbios cardíacos, distúrbios pulmonares."]
["ATROPINA 25MG/ML","ANTIARRÍTIMICOS","Hipertensão severa, colapso circulatório, distúrbios cardíacos, distúrbios pulmonares."]
["BICARBONATO DE SÓDIO 8,4%","ELETRÓLITOS","Hipocalemia, hipercalemia. Reações com doses altas: sudorese de extremidades, alcalose metabólica (alterações do humor, espasmo ou dor muscular, inquietação, irritabilidade, respiração lenta, cansaço)."]
["CLONIDINA 150MG/ML","HIPOTENSORES VENOSOS","Depressão respiratória e, em menor grau, depressão circulatória, parada respiratória, choque e parada cardíaca."]
["DEXTROCETAMINA 50MG/ML","ANESTÉSICO GERAIS","Arritmia supraventricular; debilitados; dependência física ou química de medicamentos ou drogas; desordens convulsivas; disfunção hepática; disfunção renal; doença pulmonar, morte por superdose."]
["DIAZEPAM 5MG/ML","HIPNÓTICOS E SEDATIVOS","Depressão respiratória, dependência, abstinência, hipersedação por superdose."]
["DOBUTAMINA 12,5MG/ML","ESTIMULANTES CARDÍACOS","Hipotensão, aumento na frequência cardíaca ou pressão arterial, enchimento ventricular prejudicado e obstrução do esvaziamento ventricular."]
["DOPAMINA 5MG/ML","ESTIMULANTES CARDÍACOS","Hipotensão, aumento na frequência cardíaca ou pressão arterial, enchimento ventricular prejudicado e obstrução do esvaziamento ventricular."]
["EPINEFRINA 1MG/ML","ESTIMULANTES CARDÍACOS","Hipotensão, aumento na frequência cardíaca ou pressão arterial, enchimento ventricular prejudicado e obstrução do esvaziamento ventricular."]
["FENITOINA 250MG/5ML","ANTICOVUSIVANTES","Hipotensão, especialmente após a administração de doses elevadas em alta velocidade."]
["FENTANILA 50MG/ML","ANESTÉSICO GERAIS","Arritmia supraventricular; debilitados; dependência física ou química de medicamentos ou drogas; desordens convulsivas; disfunção hepática; disfunção renal; doença pulmonar, morte por superdose."]
["FLUMAZENIL 0,5MG/5ML","ANTÍDOTO","Depressão respiratória, dependência, abstinência, hipersedação por superdose."]
["GLICOSE 50%","ELETRÓLITOS","Quando administrados em bolus, podem causar morte."]
["GLUCONATO DE CALCIO 10%","ELETRÓLITOS","Hipercalemia."]
["HALOPERIDOL 5MG/ML","HIPNÓTICOS E SEDATIVOS","Depressão respiratória, dependência, abstinência, hipersedação por superdose."]
["ISORSSORBIDA 10MG/ML","HIPOTENSORES VENOSOS","Depressão respiratória e, em menor grau, depressão circulatória, parada respiratória, choque e parada cardíaca."]
["ISOSSORBIDA 5MG COMP","HIPOTENSORES VENOSOS","Depressão respiratória e, em menor grau, depressão circulatória, parada respiratória, choque e parada cardíaca."]
["LIDOCAINA 2% SEM VASO","ANESTÉSICO LOCAIS","Doença cardíaca; diminuição da função do fígado; hipertireoidismo, suores; palidez generalizada; palpitações; hiperventilação e sensação de desmaio."]
["MIDAZOLAN 15MG/ML","HIPNÓTICOS E SEDATIVOS","Depressão respiratória, dependência, abstinência, hipersedação por superdose."]
["NALAXONA 0,4MG/ML","ANTÍDOTO","Depressão respiratória, dependência, abstinência, hipersedação por superdose."]
["NITROGLICERINA 5MG/ML","HIPOTENSORES VENOSOS","Depressão respiratória e, em menor grau, depressão circulatória, parada respiratória, choque e parada cardíaca."]
["NITROPRUSSIATO 25MG/ML","HIPOTENSORES VENOSOS","Depressão respiratória e, em menor grau, depressão circulatória, parada respiratória, choque e parada cardíaca."]
["NOREPRINEFRINA 2MG/4ML","ESTIMULANTES CARDÍACOS","Hipotensão, aumento na frequência cardíaca ou pressão arterial, enchimento ventricular prejudicado e obstrução do esvaziamento ventricular."]
["PROMETAZINA 50MG/ML","ANTI-HISTÂMICO","Depressão do Sistema Nervoso Central; Depressão Respiratória; Sedação; Sonolência"]
["PROPOFOL 10MG/ML","ANESTÉSICO GERAIS","Arritmia supraventricular; debilitados; dependência física ou química de medicamentos ou drogas; desordens convulsivas; disfunção hepática; disfunção renal; doença pulmonar, morte por superdose."]
["ROCURÔNIO 10MG/ML","BLOQUEADORE NEUROMUSCULARES","Hipotermia, paralisia da musculatura respiratória."]
["SEVOFLURANO 1MG/ML","ANESTÉSICO GERAIS","Arritmia supraventricular; debilitados; dependência física ou química de medicamentos ou drogas; desordens convulsivas; disfunção hepática; disfunção renal; doença pulmonar, morte por superdose."]
["SUXAMETÔNIO 10MG/ML","BLOQUEADORE NEUROMUSCULARES","Hipotermia, paralisia da musculatura respiratória."]
["TRAMADOL 50MG/ML","ANESTÉSICO OPIÓIDES","Euforia, desconforto, fraqueza, dor de cabeça, insônia, agitação, desorientação, distúrbios visuais, depressão respiratória, constipação, retenção urinária."]
[]
[{"$f":"VLOOKUP('FARMA-SCIH'!G1,'BANCO DE DADOS'!A1:C33,3,FALSE)","v":"Hemólise e desordens Eletrolíticas."}]
[]
[]
[]
["........"]
["AMOCIXILINA 250MG/5ML"]
["AMOCIXILINA 500MG CAPS"]
["AZITROMICINA 500MG COMP"]
["AZITROMICINA 600MG SUSP"]
["CEFAZOLINA 1G AMP"]
["CLINDAMICINA 150MG/ML AMP"]
["CLINDAMICINA 300MG COMP"]
["CLINDAMICINA 600MG COMP"]
[]
[]
[]
["........"]
["F"]
["M"]